bitfinex-derivatives/quotes_BTCF0:USTF0_20251210
["timestamp","ask_amount","ask_price","bid_price","bid_amount"]
[1765385762540,0.14813749,92282.0,92281.0,0.07386251]
[1765385762737,0.14813749,92282.0,92281.0,0.00516251]
[1765385763345,0.14803,92282.0,92281.0,0.00516251]
[1765385764138,0.14803,92282.0,92281.0,1e-08]
[1765385764450,0.14703,92259.0,92258.0,0.14234526]
[1765385764751,0.65167989,92259.0,92258.0,0.14234526]
[1765385765751,0.65167989,92259.0,92258.0,0.14334526]
[1765385765939,0.65267989,92259.0,92258.0,0.14534526]
[1765385767054,0.50568989,92259.0,92258.0,0.14534526]
[1765385767251,0.69410989,92259.0,92258.0,0.00310526]
[1765385767441,0.69410989,92259.0,92258.0,0.07180526]
[1765385767637,0.69410989,92259.0,92258.0,0.00310526]
[1765385771447,0.69402,92259.0,92258.0,0.00310526]
[1765385773551,0.69402,92259.0,92258.0,0.003]
[1765385776636,0.69412749,92259.0,92258.0,0.003]
[1765385776849,0.69402,92259.0,92258.0,0.003]
[1765385778337,0.69302,92259.0,92258.0,0.001]
[1765385778553,0.69702,92259.0,92258.0,0.001]
[1765385779251,0.13857,92244.0,92243.0,0.151181]
[1765385779551,1.00423749,92244.0,92243.0,0.151181]
[1765385780449,1.00423749,92244.0,92243.0,0.152181]
[1765385780751,1.00423749,92244.0,92243.0,0.001]
[1765385780752,1.00523749,92244.0,92243.0,0.001]
[1765385781047,1.00513,92244.0,92243.0,0.001]
[1765385781742,1.00523749,92244.0,92243.0,0.001]
[1765385781937,1.00523749,92244.0,92240.0,3e-08]
[1765385781938,0.13857,92241.0,92240.0,3e-08]
[1765385782139,0.13857,92241.0,92207.0,0.0108453]
[1765385782140,0.1494143,92216.0,92207.0,0.0108453]
[1765385782451,0.1494143,92216.0,92215.0,0.14142443]
[1765385782650,0.65425122,92216.0,92215.0,0.07215443]
[1765385782950,0.65425122,92216.0,92215.0,0.00108443]
[1765385783151,0.65425122,92216.0,92215.0,0.00208443]
[1765385783342,1.0149743,92216.0,92215.0,0.00208443]
[1765385784045,0.5112143,92216.0,92215.0,0.00208443]
[1765385784246,1.0160143,92216.0,92215.0,0.00208443]
[1765385784445,1.01612179,92216.0,92215.0,0.00208443]
[1765385784851,1.01612179,92216.0,92215.0,0.14242443]
[1765385785255,1.00527749,92216.0,92215.0,0.14242443]
[1765385786545,1.04717749,92216.0,92215.0,0.14242443]
[1765385787152,0.54237749,92216.0,92215.0,0.14242443]
[1765385787353,1.04721749,92216.0,92215.0,0.14242443]
[1765385787750,1.04721749,92216.0,92215.0,0.00208443]
[1765385787950,1.04711,92216.0,92215.0,0.00208443]
[1765385788157,1.04715,92216.0,92215.0,0.00208443]
[1765385789358,0.3618,92216.0,92215.0,0.14817443]
[1765385789567,0.36188603,92216.0,92215.0,0.17799992]
[1765385789863,0.93678603,92216.0,92215.0,0.17799992]
[1765385790157,1.00484603,92216.0,92215.0,0.17799992]
[1765385790354,0.36188603,92216.0,92215.0,0.17799992]
[1765385790553,1.00484603,92216.0,92215.0,0.17799992]
[1765385790959,0.36188603,92216.0,92215.0,0.17799992]
[1765385791154,0.93678603,92216.0,92215.0,0.17799992]
[1765385791553,1.04807603,92216.0,92215.0,0.17799992]
[1765385791860,1.04807603,92216.0,92215.0,0.17921141]
[1765385792056,1.00484603,92216.0,92215.0,0.17921141]
[1765385792259,1.00484603,92216.0,92215.0,0.17821141]
[1765385792452,1.00784603,92216.0,92215.0,0.17921141]
[1765385792852,1.05107603,92216.0,92215.0,0.03312141]
[1765385793162,1.05607603,92216.0,92215.0,0.03312141]
[1765385793858,1.05707603,92216.0,92215.0,0.03312141]
[1765385794557,1.41787603,92216.0,92215.0,0.00208443]
[1765385794766,1.41787603,92216.0,92195.0,0.03858671]
[1765385794767,0.13808,92196.0,92195.0,0.03858671]
[1765385794960,0.64310749,92196.0,92195.0,0.03107911]
[1765385795464,1.00390749,92196.0,92195.0,0.03107911]
[1765385796658,1.00790749,92196.0,92195.0,0.03207911]
[1765385797257,1.01190749,92196.0,92195.0,0.03207911]
[1765385797557,1.01190749,92196.0,92195.0,0.001]
[1765385797763,1.01390749,92196.0,92195.0,0.0315391]
[1765385798059,0.37090749,92196.0,92195.0,0.1884758]
[1765385798369,0.01010749,92196.0,92195.0,0.1884758]
[1765385799266,0.01010749,92196.0,92195.0,0.22706251]
[1765385800058,0.01010749,92196.0,92195.0,0.1884758]
[1765385800258,0.01010749,92196.0,92195.0,0.22706251]
[1765385800459,0.08012749,92196.0,92195.0,0.22706251]
[1765385800764,0.01010749,92196.0,92195.0,0.24646955]
[1765385800967,0.01010749,92196.0,92195.0,0.1884758]
[1765385802060,0.00910749,92196.0,92195.0,0.1884758]
[1765385802660,0.14118749,92196.0,92195.0,0.1884758]
[1765385802863,0.14518749,92196.0,92195.0,0.1884758]
[1765385803370,0.00610749,92196.0,92195.0,0.1884758]
[1765385803971,0.00310749,92196.0,92195.0,0.1874758]
[1765385804156,0.07612749,92196.0,92195.0,0.1884758]
[1765385804360,0.00610749,92196.0,92195.0,0.1884758]
[1765385804761,0.00310749,92196.0,92195.0,0.1874758]
[1765385804966,0.14318749,92196.0,92195.0,0.1884758]
[1765385805670,0.00510749,92196.0,92195.0,0.1884758]
[1765385806273,0.14318749,92196.0,92195.0,0.1884758]
[1765385806474,0.14318749,92196.0,92195.0,0.0315391]
[1765385806673,0.50398749,92196.0,92195.0,0.0315391]
[1765385807267,1.00894749,92196.0,92195.0,0.0315391]
[1765385808078,1.00894749,92196.0,92195.0,0.1026291]
[1765385808376,1.00894749,92196.0,92195.0,0.0315391]
[1765385808780,0.64804,92196.0,92195.0,0.001]
[1765385808968,0.14308,92196.0,92195.0,0.10321817]
[1765385809170,0.64804,92196.0,92195.0,0.001]
[1765385809461,0.64804,92196.0,92195.0,0.03213428]
[1765385809666,0.64804,92196.0,92195.0,0.001]
[1765385810275,1.36964,92196.0,92195.0,0.001]
[1765385811390,0.1489272,92191.0,92182.0,0.03889086]
[1765385811684,0.1489272,92191.0,92181.0,0.03889086]
[1765385811685,0.14903469,92191.0,92181.0,0.03889086]
[1765385812181,0.14903469,92191.0,92180.0,0.03889086]
[1765385812373,0.23674804,92191.0,92180.0,0.03889086]
[1765385812576,0.23974804,92191.0,92180.0,0.03889086]
[1765385813275,0.23974804,92191.0,92179.0,0.03889086]
[1765385813583,0.24074804,92191.0,92190.0,0.00208472]
[1765385815469,0.24064055,92191.0,92190.0,0.00208472]
[1765385815686,0.24064055,92191.0,92190.0,4.72e-06]
[1765385815986,0.74911159,92191.0,92190.0,4.72e-06]
[1765385817389,0.74921908,92191.0,92190.0,4.72e-06]
[1765385817684,0.0108492,92175.0,92167.0,0.14609]
[1765385817882,0.3608,92172.0,92170.0,0.0108497]
[1765385818186,0.3608,92172.0,92171.0,0.14157]
[1765385819290,0.3716495,92172.0,92171.0,0.14157]
[1765385819590,0.5128195,92172.0,92171.0,0.14157]
[1765385819791,0.3648,92172.0,92171.0,0.14157]
[1765385820387,0.3678,92172.0,92171.0,0.1534196]
[1765385820586,0.43406,92172.0,92171.0,0.1534196]
[1765385820783,0.007,92172.0,92171.0,0.1534196]
[1765385820987,0.007,92172.0,92171.0,0.59231046]
[1765385821286,0.04323,92200.0,92171.0,0.59231046]
[1765385821287,0.3608,92203.0,92202.0,0.1524159]
[1765385821485,0.0108457,92205.0,92204.0,0.14157]
[1765385821795,0.0771057,92205.0,92204.0,0.14157]
[1765385821976,0.50508,92210.0,92206.0,0.14157]
[1765385821977,0.3608,92207.0,92206.0,0.14157]
[1765385822382,0.49797,92207.0,92206.0,0.14157]
[1765385823290,0.49797,92207.0,92206.0,0.17106926]
[1765385823493,0.50297,92207.0,92206.0,0.03049926]
[1765385823693,0.50297,92207.0,92206.0,0.10042926]
[1765385824496,0.50897,92207.0,92206.0,0.17306926]
[1765385824994,0.50297,92207.0,92206.0,0.17206926]
[1765385825194,0.50997,92207.0,92206.0,0.17306926]
[1765385825396,0.3728,92207.0,92206.0,0.18391466]
[1765385825597,0.012,92207.0,92206.0,0.18391466]
[1765385826090,0.012,92207.0,92206.0,0.21310032]
[1765385826284,0.012,92207.0,92206.0,0.18391466]
[1765385826701,0.012,92207.0,92206.0,0.21310032]
[1765385827289,0.012,92207.0,92206.0,0.18391466]
[1765385832503,0.012,92207.0,92206.0,0.1544154]
[1765385832700,0.0001627,92216.0,92215.0,0.1444944]
[1765385832894,0.35561532,92218.0,92217.0,0.13365]
[1765385834101,0.0001627,92227.0,92215.0,0.0118444]
[1765385834102,0.0001627,92227.0,92226.0,0.13365]
[1765385834295,0.0001627,92227.0,92226.0,0.1444931]
[1765385834996,0.1314127,92227.0,92226.0,0.1444931]
[1765385835197,0.0001627,92227.0,92226.0,0.1444931]
[1765385835501,0.0021627,92227.0,92226.0,0.1454931]
[1765385836295,0.0031627,92227.0,92226.0,0.1454931]
[1765385836695,0.0011627,92227.0,92226.0,0.1444931]
[1765385836904,0.0011627,92227.0,92226.0,0.1454931]
[1765385836905,0.0021627,92227.0,92226.0,0.1454931]
[1765385837103,0.3608,92237.0,92226.0,0.1454931]
[1765385837104,0.3608,92237.0,92236.0,0.1444919]
[1765385837801,0.3608,92249.0,92239.0,0.1444916]
[1765385838193,0.3609627,92249.0,92239.0,0.1444916]
[1765385839496,0.00208413,92240.0,92239.0,0.1444916]
[1765385840197,0.00108413,92240.0,92239.0,0.1444916]
[1765385840701,0.3609627,92249.0,92248.0,0.1444905]
[1765385841005,0.0001627,92249.0,92248.0,0.1444905]
[1765385841211,0.3608,92258.0,92257.0,0.1444895]
[1765385841503,0.3608,92270.0,92269.0,0.144488]
[1765385841711,0.3608,92270.0,92257.0,0.3716395]
[1765385841712,0.13125,92258.0,92257.0,0.49445]
[1765385841902,0.0108387,92264.0,92263.0,0.0108385]
[1765385842204,0.0108387,92264.0,92263.0,0.1444885]
[1765385842205,0.13125,92264.0,92263.0,0.1444885]
[1765385842703,0.1420886,92264.0,92263.0,0.1444885]
[1765385843401,0.1440886,92264.0,92263.0,0.1444885]
[1765385844307,0.1450886,92264.0,92263.0,0.1454885]
[1765385844604,0.1430886,92264.0,92263.0,0.1444885]
[1765385844909,0.1450886,92264.0,92263.0,0.1454885]
[1765385845210,0.1440886,92264.0,92263.0,0.1444885]
[1765385845411,0.1430886,92264.0,92263.0,0.1454885]
[1765385845604,0.1460886,92264.0,92263.0,0.1464885]
[1765385845808,0.13525,92264.0,92263.0,0.1464885]
[1765385846306,0.13525,92264.0,92263.0,0.1454885]
[1765385846505,0.13525,92264.0,92263.0,0.13465]
[1765385846707,0.13425,92264.0,92263.0,0.13365]
[1765385847005,0.13525,92264.0,92263.0,0.13465]
[1765385847900,0.004,92264.0,92263.0,0.13465]
[1765385848110,0.1316,92264.0,92263.0,0.13465]
[1765385848310,0.1306,92264.0,92263.0,0.13465]
[1765385848997,0.1286,92264.0,92263.0,0.13465]
[1765385849307,0.17017,92264.0,92263.0,0.13465]
[1765385849499,0.17017,92264.0,92263.0,0.001]
[1765385850007,0.1276,92256.0,92255.0,0.1397496]
[1765385850207,0.1276,92255.0,92254.0,0.0001626]
[1765385850508,0.4884,92255.0,92254.0,0.0001626]
[1765385851306,0.4894,92255.0,92254.0,0.0011626]
[1765385851800,0.4894,92255.0,92254.0,0.1300726]
[1765385852203,0.4914,92255.0,92254.0,0.1300726]
[1765385852606,0.4914,92255.0,92254.0,0.0011626]
[1765385853108,0.16717,92240.0,92239.0,0.1397516]
[1765385854210,0.1276,92236.0,92230.0,0.0001626]
[1765385854407,0.1276,92236.0,92235.0,0.5005519]
[1765385854604,0.06391,92236.0,92235.0,0.5005519]
[1765385854808,0.1276,92246.0,92245.0,0.0741207]
[1765385855006,0.1276,92246.0,92245.0,0.1397507]
[1765385855215,0.1276,92246.0,92245.0,0.12891]
[1765385855514,0.3716407,92247.0,92239.0,0.004]
[1765385855515,0.1384415,92240.0,92239.0,0.004]
[1765385856413,0.1384419,92236.0,92235.0,0.49171]
[1765385856612,0.1394419,92236.0,92235.0,0.49571]
[1765385857016,0.1384419,92236.0,92235.0,0.48971]
[1765385857416,0.1384419,92236.0,92235.0,0.42408]
[1765385857617,0.1384419,92236.0,92235.0,0.48971]
[1765385857821,0.001,92236.0,92235.0,0.49371]
[1765385858123,0.001,92236.0,92235.0,0.49571]
[1765385858416,0.1286,92236.0,92235.0,0.49571]
[1765385862318,0.1286,92236.0,92235.0,0.52502692]
[1765385863516,0.06491,92236.0,92235.0,0.52502692]
[1765385864420,0.001,92236.0,92235.0,0.52502692]
[1765385865508,0.001,92236.0,92235.0,0.55403115]
[1765385866313,0.0108408,92246.0,92245.0,0.0108407]
[1765385866519,0.0108408,92246.0,92245.0,0.16906762]
[1765385866720,0.0747508,92246.0,92245.0,0.16906762]
[1765385867017,0.010839,92261.0,92248.0,0.1789905]
[1765385867018,0.011003,92249.0,92248.0,0.1789905]
[1765385867206,0.0001626,92249.0,92248.0,0.20830742]
[1765385869120,0.0011626,92249.0,92248.0,0.20830742]
[1765385869508,0.0021626,92249.0,92248.0,0.21030742]
[1765385870515,0.1287626,92249.0,92248.0,0.20830742]
[1765385870717,0.0660726,92249.0,92248.0,0.21030742]
[1765385872021,0.1297626,92249.0,92248.0,0.17106742]
[1765385874123,0.1297626,92249.0,92248.0,0.16022692]
[1765385874320,0.1297626,92249.0,92248.0,0.002]
[1765385876419,0.1297626,92249.0,92248.0,0.13091]
[1765385876728,0.1297626,92249.0,92248.0,0.002]
[1765385877414,0.1297626,92249.0,92248.0,0.06528]
[1765385877815,0.1297626,92249.0,92248.0,0.002]
[1765385878825,0.1297626,92249.0,92248.0,0.00075065]
[1765385878826,0.6343626,92249.0,92248.0,0.00075065]
[1765385880422,0.6343626,92249.0,92230.0,0.0001626]
[1765385880423,0.1407025,92231.0,92230.0,0.0001626]
[1765385880723,0.1407025,92231.0,92230.0,0.09729476]
[1765385880914,0.1407025,92231.0,92230.0,0.03063476]
[1765385881114,0.1407025,92231.0,92230.0,0.0001626]
[1765385881626,0.1407025,92231.0,92230.0,0.0021626]
[1765385881822,0.1407025,92231.0,92230.0,0.0688226]
[1765385882028,0.6453425,92231.0,92230.0,0.1318926]
[1765385882212,0.001,92231.0,92230.0,0.1368926]
[1765385883431,0.13086,92231.0,92230.0,0.1368926]
[1765385883928,0.001,92231.0,92230.0,0.1368926]
[1765385884129,0.13086,92231.0,92230.0,0.1368926]
[1765385884327,0.06912,92231.0,92230.0,0.1368926]
[1765385884531,0.001,92231.0,92230.0,0.1368926]
[1765385884930,0.001,92231.0,92230.0,0.16730728]
[1765385885325,0.001,92231.0,92230.0,0.1368926]
[1765385885521,0.001,92231.0,92230.0,0.16730627]
[1765385885722,0.13086,92231.0,92230.0,0.10423627]
[1765385886026,0.13086,92231.0,92230.0,0.1368926]
[1765385886330,0.13086,92231.0,92230.0,0.0738226]
[1765385886518,0.13086,92231.0,92230.0,0.0071626]
[1765385886830,0.6355,92231.0,92230.0,0.0071626]
[1765385888827,0.13086,92231.0,92230.0,0.0071626]
[1765385889034,0.6355,92231.0,92230.0,0.0071626]
[1765385890529,0.6355,92231.0,92230.0,0.1352426]
[1765385890724,0.13086,92231.0,92230.0,0.1352426]
[1765385890925,0.63554,92231.0,92230.0,0.1352426]
[1765385891529,0.63554,92231.0,92230.0,0.1460852]
[1765385891830,0.63554,92231.0,92230.0,0.1352426]
[1765385892025,0.63554,92231.0,92230.0,0.0071626]
[1765385897329,0.63554,92231.0,92230.0,0.0699126]
[1765385897929,0.63554,92231.0,92230.0,0.1352426]
[1765385897930,0.06912,92231.0,92230.0,0.1352426]
[1765385898130,0.001,92231.0,92230.0,0.1352426]
[1765385898432,0.001,92231.0,92230.0,0.16705225]
[1765385898632,0.0672,92231.0,92230.0,0.16705225]
[1765385899642,0.001,92231.0,92230.0,0.16705225]
[1765385899833,0.0672,92231.0,92230.0,0.16705225]
[1765385900227,0.1333,92231.0,92230.0,0.16705225]
[1765385900627,0.1333,92231.0,92230.0,0.03897225]
[1765385901247,0.1333,92231.0,92230.0,0.0071626]
[1765385904141,0.4941,92231.0,92230.0,0.0071626]
[1765385905244,0.4961,92231.0,92230.0,0.0031626]
[1765385905745,0.4961,92231.0,92230.0,0.0011626]
[1765385905746,0.4981,92231.0,92230.0,0.0011626]
[1765385906443,0.4961,92231.0,92230.0,0.0011626]
[1765385906642,0.4961,92231.0,92230.0,0.0001626]
[1765385906843,0.4981,92231.0,92230.0,0.0011626]
[1765385907039,0.1323,92215.0,92214.0,0.02919262]
[1765385907238,0.1323,92215.0,92214.0,0.09431562]
[1765385907439,0.1323,92215.0,92214.0,0.15964562]
[1765385908248,0.3608,92221.0,92220.0,0.1357038]
[1765385908447,0.0001626,92224.0,92223.0,0.1357035]
[1765385908754,0.0001626,92224.0,92223.0,0.16726912]
[1765385909839,0.0001626,92224.0,92223.0,0.52806912]
[1765385910554,0.0774759,92224.0,92223.0,0.16826912]
[1765385910751,0.1404859,92224.0,92223.0,0.16826912]
[1765385911050,0.1296426,92224.0,92223.0,0.16826912]
[1765385911249,0.1316426,92224.0,92223.0,0.16826912]
[1765385912349,0.1316426,92224.0,92223.0,0.20725612]
[1765385912545,0.1316426,92224.0,92223.0,0.16826912]
[1765385912754,0.1316426,92224.0,92223.0,0.15742562]
[1765385913158,0.0031626,92224.0,92223.0,0.16826912]
[1765385914245,0.0031626,92224.0,92223.0,0.52906912]
[1765385914444,0.04215025,92252.0,92248.0,0.12486]
[1765385914445,0.5001204,92249.0,92248.0,0.12486]
[1765385915048,0.01084,92253.0,92252.0,0.0108398]
[1765385915253,0.0108396,92256.0,92255.0,0.0108395]
[1765385915453,0.0108396,92256.0,92255.0,0.16689194]
[1765385916355,0.0108396,92256.0,92255.0,0.1356995]
[1765385916649,0.0108396,92256.0,92255.0,0.16687808]
[1765385916955,0.0158396,92256.0,92255.0,0.16787808]
[1765385917248,0.0208396,92256.0,92255.0,0.1376995]
[1765385918254,0.01,92256.0,92255.0,0.1376995]
[1765385918856,0.13848,92256.0,92255.0,0.1376995]
[1765385920758,0.13848,92256.0,92255.0,0.12686]
[1765385921655,0.13848,92256.0,92255.0,0.002]
[1765385926357,0.13848,92256.0,92255.0,0.06486]
[1765385926561,0.13848,92256.0,92255.0,0.12686]
[1765385927160,0.1393206,92247.0,92246.0,0.0001626]
[1765385928457,0.1433206,92247.0,92246.0,0.0011626]
[1765385929759,0.1463206,92247.0,92246.0,0.0021626]
[1765385931656,0.1393229,92228.0,92227.0,0.06286]
[1765385932256,0.1393229,92228.0,92227.0,0.12486]
[1765385932563,0.1393229,92228.0,92227.0,0.15599959]
[1765385932961,0.1403229,92228.0,92227.0,0.15799959]
[1765385934159,0.001,92228.0,92227.0,0.15799959]
[1765385935557,0.12948,92228.0,92227.0,0.15799959]
[1765385938070,0.49028,92228.0,92227.0,0.002]
[1765385939556,0.49028,92228.0,92227.0,0.13105]
[1765385941270,0.001,92228.0,92227.0,0.13105]
[1765385941474,0.001,92228.0,92227.0,0.16210992]
[1765385941671,0.0001626,92237.0,92236.0,0.1398919]
[1765385941867,0.0001626,92237.0,92236.0,0.17095182]
[1765385942274,0.1254226,92237.0,92236.0,0.17095182]
[1765385942486,0.0611826,92237.0,92236.0,0.17095182]
[1765385942795,0.3608,92247.0,92246.0,0.1398907]
[1765385942984,0.3608,92253.0,92250.0,0.03855]
[1765385943289,0.3608,92253.0,92252.0,0.13989]
[1765385943896,0.48606,92253.0,92252.0,0.13989]
[1765385944387,0.49206,92253.0,92252.0,0.13005]
[1765385944588,0.49206,92253.0,92252.0,0.001]
[1765385944783,0.49706,92253.0,92252.0,0.001]
[1765385945003,0.49706,92253.0,92252.0,0.13005]
[1765385945303,0.43282,92253.0,92252.0,0.13005]
[1765385945487,0.49206,92253.0,92252.0,0.001]
[1765385945792,0.49206,92253.0,92243.0,0.0001626]
[1765385945793,0.136101,92244.0,92243.0,0.0001626]
[1765385945991,0.496901,92244.0,92243.0,0.0001626]
[1765385946998,0.496901,92244.0,92243.0,0.1302126]
[1765385946999,0.499901,92244.0,92243.0,0.1302126]
[1765385947192,0.499901,92244.0,92243.0,0.0011626]
[1765385947592,0.499901,92244.0,92219.0,0.3608]
[1765385947593,0.1361038,92220.0,92219.0,0.3608]
[1765385947796,0.1361043,92216.0,92210.0,0.02919767]
[1765385947990,0.1361043,92216.0,92208.0,0.0108452]
[1765385947991,0.1361043,92216.0,92215.0,0.03204374]
[1765385948198,0.1361043,92216.0,92215.0,0.00108443]
[1765385949693,0.1361043,92216.0,92215.0,0.13001443]
[1765385949899,0.1371043,92216.0,92215.0,0.13401443]
[1765385950594,0.1371043,92216.0,92215.0,0.07071443]
[1765385950795,0.1371043,92216.0,92215.0,0.00708443]
[1765385951096,0.1391043,92216.0,92215.0,0.00408443]
[1765385951398,0.1421043,92216.0,92215.0,0.12954443]
[1765385952298,0.1421043,92216.0,92215.0,0.00308443]
[1765385956301,0.1421043,92216.0,92215.0,0.06424443]
[1765385956690,0.1421043,92216.0,92215.0,0.12954443]
[1765385957494,0.13126,92216.0,92215.0,0.12954443]
[1765385958790,0.006,92216.0,92215.0,0.12954443]
[1765385959200,0.0168443,92216.0,92215.0,0.12954443]
[1765385959395,0.0767643,92216.0,92215.0,0.12954443]
[1765385959799,0.06592,92216.0,92215.0,0.12954443]
[1765385960001,0.006,92216.0,92215.0,0.12954443]
[1765385960504,0.006,92216.0,92215.0,0.16151876]
[1765385963004,0.0001626,92225.0,92224.0,0.1620433]
[1765385963211,0.0001626,92225.0,92224.0,0.19401763]
[1765385964113,0.0051626,92225.0,92224.0,0.19501763]
[1765385965614,0.0031626,92225.0,92224.0,0.19501763]
[1765385965810,0.0021626,92225.0,92224.0,0.19501763]
[1765385970116,0.1230626,92225.0,92224.0,0.19944241]
[1765385970319,0.1230626,92225.0,92224.0,0.17027763]
[1765385970613,0.1230626,92225.0,92224.0,0.19944241]
[1765385970919,0.0021626,92225.0,92224.0,0.19944241]
[1765385971115,0.0021626,92225.0,92224.0,0.17027763]
[1765385972511,0.22062671,92250.0,92224.0,0.17027763]
[1765385972512,0.4817,92241.0,92240.0,0.0108415]
[1765385972714,0.4817,92241.0,92240.0,0.1288515]
[1765385972920,0.5046,92254.0,92247.0,0.1288506]
[1765385972921,0.1317405,92248.0,92247.0,0.1288506]
[1765385975022,0.1209,92248.0,92247.0,0.1288506]
[1765385975222,0.1209,92248.0,92247.0,0.1298506]
[1765385975223,0.1249,92248.0,92247.0,0.1298506]
[1765385975517,0.1289,92248.0,92247.0,0.1308506]
[1765385976314,0.1279,92248.0,92247.0,0.1298506]
[1765385977420,0.1652,92248.0,92247.0,0.0715606]
[1765385977619,0.1652,92248.0,92247.0,0.001]
[1765385979521,0.526,92248.0,92247.0,0.001]
[1765385982119,0.1680416,92239.0,92238.0,0.0001626]
[1765385982324,0.1680416,92239.0,92223.0,0.1288534]
[1765385982325,0.1317434,92224.0,92223.0,0.1288534]
[1765385982516,0.1317434,92224.0,92223.0,0.16183745]
[1765385982916,0.15873,92224.0,92223.0,0.04382745]
[1765385983214,0.1209,92221.0,92220.0,0.0108438]
[1765385983520,0.1209,92221.0,92220.0,0.16174471]
[1765385985123,0.1209,92221.0,92220.0,0.16374471]
[1765385985519,0.1209,92221.0,92220.0,0.16674471]
[1765385985520,0.1219,92221.0,92220.0,0.16674471]
[1765385986110,0.001,92221.0,92220.0,0.16674471]
[1765385989021,0.001,92221.0,92220.0,0.20563656]
[1765385989227,0.001,92221.0,92220.0,0.16674471]
[1765385993828,0.0001626,92233.0,92232.0,0.1555224]
[1765385994028,0.0001626,92233.0,92232.0,0.18841331]
[1765385994915,0.0011626,92233.0,92232.0,0.18841331]
[1765385995122,0.0011626,92233.0,92232.0,0.18941331]
[1765385995123,0.0021626,92233.0,92232.0,0.18941331]
[1765385995530,0.0021626,92233.0,92232.0,0.2283885]
[1765385996431,0.0021626,92233.0,92232.0,0.18941331]
[1765386000428,0.1237026,92233.0,92232.0,0.16274331]
[1765386000825,0.1237026,92233.0,92232.0,0.2017136]
[1765386001225,0.1237026,92233.0,92232.0,0.16274331]
[1765386002526,0.1237026,92233.0,92232.0,0.19712331]
[1765386002527,0.0021626,92233.0,92232.0,0.19712331]
[1765386002730,0.3608,92248.0,92247.0,0.1338406]
[1765386002929,0.3608,92248.0,92247.0,0.19595578]
[1765386003230,0.3608,92248.0,92247.0,0.16673151]
[1765386004040,0.3638,92248.0,92247.0,0.16673151]
[1765386004230,0.3648,92248.0,92247.0,0.16773151]
[1765386004630,0.3618,92248.0,92247.0,0.16773151]
[1765386004930,0.3628,92248.0,92247.0,0.16773151]
[1765386005332,0.48434,92248.0,92247.0,0.16773151]
[1765386005532,0.5208,92248.0,92247.0,0.06309945]
[1765386005733,0.9208,92248.0,92247.0,0.03389091]
[1765386006042,0.9208,92248.0,92238.0,0.0001626]
[1765386006043,0.1323816,92239.0,92238.0,0.0001626]
[1765386006230,0.1323816,92239.0,92219.0,0.05846279]
[1765386006231,0.12154,92229.0,92228.0,0.02920854]
[1765386006426,0.12154,92229.0,92228.0,0.15706706]
[1765386006832,0.12154,92229.0,92228.0,0.03406706]
[1765386007337,0.12154,92229.0,92228.0,0.09427706]
[1765386007644,0.12254,92229.0,92228.0,0.09927706]
[1765386007843,0.12254,92229.0,92228.0,0.16306706]
[1765386008043,0.12254,92229.0,92228.0,0.16006706]
[1765386008437,0.06038,92229.0,92228.0,0.16006706]
[1765386009154,0.12254,92229.0,92228.0,0.03706706]
[1765386009333,0.12254,92229.0,92228.0,0.09727706]
[1765386009529,0.12254,92229.0,92228.0,0.15925706]
[1765386009839,0.06038,92229.0,92228.0,0.15925706]
[1765386010837,0.001,92229.0,92228.0,0.1884656]
[1765386011035,0.001,92229.0,92228.0,0.15925706]
[1765386012946,0.1336627,92229.0,92228.0,0.03706706]
[1765386013248,0.1336627,92229.0,92228.0,0.003]
[1765386014037,0.8552627,92229.0,92228.0,0.003]
[1765386015143,0.8552627,92229.0,92228.0,0.12497]
[1765386015452,0.84442,92229.0,92228.0,0.12497]
[1765386015651,0.84442,92229.0,92228.0,0.003]
[1765386019045,0.1326638,92220.0,92219.0,0.0001626]
[1765386019235,0.4934638,92220.0,92219.0,0.0001626]
[1765386020347,0.4944638,92220.0,92219.0,0.0031626]
[1765386020545,0.12182,92207.0,92206.0,0.0108453]
[1765386020751,0.12182,92207.0,92206.0,0.04403974]
[1765386021049,0.12182,92207.0,92206.0,0.03319444]
[1765386021239,0.12182,92204.0,92203.0,0.0108458]
[1765386021553,0.12182,92204.0,92203.0,0.16589799]
[1765386022545,0.12182,92204.0,92203.0,0.1328158]
[1765386022756,0.12282,92204.0,92203.0,0.1368158]
[1765386023048,0.12382,92204.0,92203.0,0.1418158]
[1765386024053,0.06344,92204.0,92203.0,0.1418158]
[1765386024353,0.12382,92204.0,92203.0,0.1418158]
[1765386025043,0.12382,92204.0,92203.0,0.009]
[1765386026052,0.12282,92204.0,92203.0,0.12197]
[1765386026355,0.12682,92204.0,92203.0,0.12297]
[1765386026749,0.12682,92204.0,92203.0,0.12197]
[1765386026750,0.12282,92204.0,92203.0,0.12197]
[1765386026954,0.12782,92204.0,92203.0,0.12297]
[1765386027453,0.1386657,92204.0,92203.0,0.001]
[1765386027648,0.12882,92204.0,92203.0,0.06099]
[1765386027840,0.12882,92204.0,92203.0,0.12297]
[1765386029044,0.12882,92204.0,92203.0,0.06099]
[1765386029244,0.12882,92204.0,92203.0,0.001]
[1765386030150,0.1331963,92199.0,92194.0,0.0001626]
[1765386030350,0.1331963,92199.0,92171.0,0.02921782]
[1765386030351,0.1331972,92191.0,92171.0,0.02921782]
[1765386030555,0.1331972,92191.0,92181.0,0.0108484]
[1765386030853,0.1331972,92191.0,92169.0,0.03749]
[1765386030854,0.1331972,92191.0,92190.0,0.11530472]
[1765386031257,0.12244854,92191.0,92190.0,0.00108472]
[1765386031459,0.48324854,92191.0,92190.0,0.00108472]
[1765386032250,0.48524854,92191.0,92190.0,0.11730472]
[1765386032450,0.48524854,92191.0,92190.0,0.06099472]
[1765386032659,0.48524854,92191.0,92190.0,0.11730472]
[1765386033153,0.48524854,92191.0,92190.0,0.00308472]
[1765386033460,0.48624854,92191.0,92190.0,0.00308472]
[1765386033657,0.48624854,92191.0,92190.0,0.00208472]
[1765386034258,0.48624854,92191.0,92190.0,0.05999472]
[1765386034959,0.48624854,92191.0,92190.0,0.11630472]
[1765386035344,0.48624854,92191.0,92190.0,0.05999472]
[1765386035548,0.48624854,92191.0,92190.0,0.00208472]
[1765386036150,0.48624854,92191.0,92190.0,0.05999472]
[1765386036651,0.48624854,92191.0,92190.0,0.00208472]
[1765386039462,0.48624854,92191.0,92190.0,0.11630472]
[1765386039657,0.99092854,92191.0,92190.0,0.11630472]
[1765386041367,0.99092854,92191.0,92190.0,0.05999472]
[1765386041954,0.99092854,92191.0,92190.0,0.00208472]
[1765386042360,0.12235,92179.0,92178.0,0.02921782]
[1765386042560,0.48324385,92179.0,92178.0,0.03140377]